bitfinex-derivatives/quotes_BTCF0:USTF0_20251220
["timestamp","ask_amount","ask_price","bid_price","bid_amount"]
[1766270832317,0.02832,88339.0,88323.0,0.06111234]
[1766270833013,0.02832,88339.0,88323.0,0.00016983]
[1766270834811,0.02832,88339.0,88320.0,0.06094251]
[1766270835821,0.02832,88339.0,88321.0,0.00011322]
[1766270836318,0.0113253,88338.0,88321.0,0.00011322]
[1766270836516,0.19945227,88331.0,88321.0,0.00011322]
[1766270836923,0.0113257,88335.0,88321.0,0.00011322]
[1766270837121,0.0113257,88335.0,88316.0,0.02832]
[1766270837422,0.02832,88339.0,88316.0,0.02832]
[1766270837423,0.011326,88332.0,88316.0,0.02832]
[1766270838417,0.0113264,88329.0,88316.0,0.02832]
[1766270838825,0.02832,88330.0,88316.0,0.02832]
[1766270839223,0.02832,88330.0,88306.0,0.07227171]
[1766270839224,0.22777227,88330.0,88306.0,0.07227171]
[1766270839526,0.22777227,88330.0,88306.0,0.0113292]
[1766270839716,0.0113264,88329.0,88306.0,0.0113292]
[1766270840117,0.0113264,88329.0,88305.0,0.07227181]
[1766270840718,0.0113264,88329.0,88305.0,0.0113293]
[1766270841027,0.0113264,88329.0,88305.0,0.07227181]
[1766270841319,0.0113264,88329.0,88305.0,0.0113293]
[1766270843529,0.0113264,88329.0,88308.0,0.011329]
[1766270844429,0.22777227,88330.0,88308.0,0.011329]
[1766270847431,0.22777227,88330.0,88311.0,0.0113286]
[1766270855735,0.22794515,88330.0,88311.0,0.0113286]
[1766270867340,0.02832,88330.0,88314.0,0.0113282]
[1766270869148,0.02832,88330.0,88317.0,0.0113279]
[1766270871050,0.00016983,88340.0,88312.0,0.06094251]
[1766270871345,0.02430825,88339.0,88314.0,0.06094251]
[1766270871547,0.00016983,88340.0,88326.0,0.0113267]
[1766270871548,0.03190825,88338.0,88326.0,0.0113267]
[1766270871743,0.02430825,88337.0,88326.0,0.0113267]
[1766270871951,0.02430825,88336.0,88326.0,0.0113267]
[1766270872148,0.0076,88338.0,88326.0,0.0113267]
[1766270872350,0.02430309,88337.0,88326.0,0.0113267]
[1766270872551,0.0076,88338.0,88326.0,0.0113267]
[1766270872740,0.02429987,88337.0,88326.0,0.0113267]
[1766270872941,0.0076,88338.0,88326.0,0.0113267]
[1766270873142,0.02429945,88337.0,88326.0,0.0113267]
[1766270873344,0.0076,88338.0,88326.0,0.0113267]
[1766270873651,0.02429662,88337.0,88326.0,0.0113267]
[1766270873851,0.19973024,88340.0,88326.0,0.0113267]
[1766270874045,0.0526166,88339.0,88326.0,0.0113267]
[1766270874245,0.0242966,88338.0,88326.0,0.0113267]
[1766270874445,0.02832,88339.0,88315.0,0.06094251]
[1766270874645,0.02429434,88338.0,88315.0,0.06094251]
[1766270874855,0.02832,88339.0,88315.0,0.06094251]
[1766270875055,0.02429434,88338.0,88315.0,0.06094251]
[1766270875258,0.02832,88339.0,88315.0,0.06094251]
[1766270875453,0.02429241,88338.0,88328.0,0.0113264]
[1766270875755,0.02832,88337.0,88328.0,0.0113264]
[1766270875954,0.19973024,88340.0,88328.0,0.0113264]
[1766270876155,0.05261198,88339.0,88328.0,0.0113264]
[1766270876351,0.02832,88339.0,88328.0,0.0113264]
[1766270885258,0.19973024,88340.0,88328.0,0.0113264]
[1766270885454,0.05256051,88339.0,88328.0,0.0113264]
[1766270885661,0.02832,88339.0,88328.0,0.0113264]
[1766270889164,0.02832,88339.0,88315.0,0.06094251]
[1766270890156,0.19973024,88340.0,88325.0,0.0113268]
[1766270890348,0.02832,88339.0,88325.0,0.0113268]
[1766270891259,0.19973024,88340.0,88325.0,0.0113268]
[1766270891458,0.02832,88338.0,88325.0,0.0113268]
[1766270892264,0.02832,88337.0,88325.0,0.0113268]
[1766270895654,0.02832,88336.0,88325.0,0.0113268]
[1766270900070,0.19973342,88340.0,88325.0,0.0113268]
[1766270900272,0.05257896,88339.0,88325.0,0.0113268]
[1766270900569,0.02425896,88338.0,88325.0,0.0113268]
[1766270900767,0.02832,88337.0,88325.0,0.0113268]
[1766270907370,0.02832,88337.0,88321.0,0.0113273]
[1766270940007,0.00016983,88340.0,88321.0,0.0113273]
[1766270940300,0.03975878,88339.0,88321.0,0.0113273]
[1766270940500,0.02427878,88338.0,88321.0,0.0113273]
[1766270942710,0.02427878,88338.0,88318.0,0.06094251]
[1766270943010,0.02427878,88338.0,88317.0,0.06094251]
[1766270944202,0.02427878,88338.0,88319.0,0.0113275]
[1766270951712,0.03560398,88338.0,88319.0,0.0113275]
[1766270951915,0.02427878,88337.0,88315.0,0.06094251]
[1766270952119,0.01548,88339.0,88315.0,0.06094251]
[1766270952120,0.02427878,88336.0,88315.0,0.06094251]
[1766270952412,0.21088181,88330.0,88313.0,0.06090251]
[1766270952608,0.02832,88329.0,88308.0,0.0113289]
[1766270953305,0.03567094,88328.0,88307.0,0.0396491]
[1766270953604,0.0113266,88328.0,88307.0,0.0396491]
[1766270954107,0.0113266,88328.0,88307.0,0.0113291]
[1766270958815,0.0113266,88328.0,88303.0,0.0113296]
[1766270959018,0.00016983,88324.0,88303.0,0.0113296]
[1766270959610,0.00016983,88324.0,88306.0,0.0113293]
[1766270976330,0.00016983,88324.0,88309.0,0.0113289]
[1766270995354,0.19964163,88320.0,88309.0,0.0113289]
[1766270995653,0.02832,88319.0,88309.0,0.0113289]
[1766271002362,0.00016983,88324.0,88309.0,0.0113289]
[1766271002662,0.00072,88323.0,88309.0,0.0113289]
[1766271003468,0.19963761,88320.0,88309.0,0.0113289]
[1766271003961,0.19963761,88320.0,88305.0,0.0113294]
[1766271004157,0.19963761,88315.0,88301.0,0.0113299]
[1766271004360,0.19963761,88311.0,88301.0,0.0113299]
[1766271004863,0.19963761,88320.0,88304.0,0.0113295]
[1766271005065,0.19963761,88314.0,88304.0,0.0113295]
[1766271014177,0.02832,88315.0,88304.0,0.0113295]
[1766271025076,0.0113286,88312.0,88296.0,0.02832]
[1766271025269,0.19963761,88310.0,88296.0,0.02832]
[1766271026976,0.02832,88315.0,88296.0,0.02832]
[1766271027476,0.0113283,88314.0,88296.0,0.02832]
[1766271028883,0.0113283,88314.0,88296.0,0.0396506]
[1766271029273,0.02832,88315.0,88296.0,0.0396506]
[1766271034989,0.02832,88315.0,88299.0,0.0113302]
[1766271043490,0.02832,88315.0,88296.0,0.02832]
[1766271044489,0.02832,88315.0,88297.0,0.0113305]
[1766271045793,0.0396482,88315.0,88297.0,0.0113305]
[1766271048996,0.02832,88315.0,88297.0,0.0113305]
[1766271050198,0.1996663,88310.0,88297.0,0.0113305]
[1766271050587,0.02832,88315.0,88297.0,0.0113305]
[1766271052998,0.0113283,88314.0,88296.0,0.02832]
[1766271055403,0.02832,88315.0,88296.0,0.02832]
[1766271055602,0.02417405,88314.0,88296.0,0.02832]
[1766271055898,0.02832,88315.0,88296.0,0.02832]
[1766271056100,0.02417404,88314.0,88296.0,0.02832]
[1766271056300,0.02832,88315.0,88296.0,0.02832]
[1766271056500,0.02417355,88314.0,88296.0,0.02832]
[1766271056702,0.02832,88315.0,88296.0,0.02832]
[1766271056901,0.02417355,88314.0,88296.0,0.02832]
[1766271057101,0.02832,88315.0,88296.0,0.02832]
[1766271057302,0.02417354,88314.0,88296.0,0.02832]
[1766271057506,0.02832,88315.0,88296.0,0.02832]
[1766271058100,0.0396482,88315.0,88296.0,0.02832]
[1766271061705,0.02417255,88314.0,88296.0,0.02832]
[1766271061905,0.0396482,88315.0,88296.0,0.02832]
[1766271063209,0.0396482,88315.0,88296.0,0.0396506]
[1766271064213,0.0396482,88315.0,88296.0,0.02832]
[1766271070311,0.0396482,88315.0,88295.0,0.06103344]
[1766271070511,0.0396482,88315.0,88293.0,0.06103344]
[1766271071913,0.0396482,88315.0,88293.0,0.011331]
[1766271075313,0.19967507,88310.0,88293.0,0.011331]
[1766271076530,0.19970134,88310.0,88293.0,0.011331]
[1766271078334,0.02836,88309.0,88293.0,0.011331]
[1766271087231,0.02836,88309.0,88292.0,0.0113311]
[1766271087431,0.02852983,88309.0,88292.0,0.0113311]
[1766271094240,0.02852983,88309.0,88288.0,0.0113315]
[1766271094632,0.02852983,88309.0,88285.0,0.06103344]
[1766271095241,0.02852983,88309.0,88290.0,0.0113313]
[1766271096141,0.02421955,88308.0,88290.0,0.0113313]
[1766271096341,0.02852983,88309.0,88290.0,0.0113313]
[1766271096643,0.02421939,88308.0,88290.0,0.0113313]
[1766271096843,0.03985883,88309.0,88290.0,0.0113313]
[1766271097045,0.02421942,88308.0,88290.0,0.0113313]
[1766271097236,0.03985883,88309.0,88290.0,0.0113313]
[1766271097542,0.02421977,88308.0,88290.0,0.0113313]
[1766271097744,0.03985883,88309.0,88290.0,0.0113313]
[1766271097946,0.02421978,88308.0,88290.0,0.0113313]
[1766271098246,0.03985883,88309.0,88290.0,0.0113313]
[1766271098446,0.0242196,88308.0,88290.0,0.0113313]
[1766271098739,0.02848983,88309.0,88296.0,0.0113305]
[1766271098931,0.02848983,88309.0,88299.0,0.0113301]
[1766271102745,0.02848983,88309.0,88302.0,0.0113298]
[1766271107048,0.02848983,88309.0,88298.0,0.0113302]
[1766271109441,0.02423288,88308.0,88298.0,0.0113302]
[1766271109646,0.02848983,88309.0,88298.0,0.0113302]
[1766271109848,0.02423288,88308.0,88298.0,0.0113302]
[1766271110153,0.02848983,88309.0,88298.0,0.0113302]
[1766271110349,0.02423581,88308.0,88298.0,0.0113302]
[1766271110550,0.02848983,88309.0,88298.0,0.0113302]
[1766271110752,0.02423581,88308.0,88298.0,0.0113302]
[1766271110956,0.02848983,88309.0,88298.0,0.0113302]
[1766271111138,0.02423582,88308.0,88298.0,0.0113302]
[1766271111338,0.02848983,88309.0,88295.0,4e-05]
[1766271111542,0.02423702,88308.0,88295.0,4e-05]
[1766271111751,0.02848983,88309.0,88296.0,0.0113306]
[1766271111953,0.02423703,88308.0,88296.0,0.0113306]
[1766271112249,0.02848983,88309.0,88296.0,0.0113306]
[1766271112454,0.02423843,88308.0,88296.0,0.0113306]
[1766271112652,0.02423843,88307.0,88296.0,0.0113306]
[1766271112855,0.02848983,88309.0,88296.0,0.0113306]
[1766271113053,0.02423842,88308.0,88296.0,0.0113306]
[1766271113253,0.02423842,88307.0,88296.0,0.0113306]
[1766271113455,0.02848983,88309.0,88296.0,0.0113306]
[1766271113653,0.02424026,88308.0,88296.0,0.0113306]
[1766271113855,0.02424026,88307.0,88296.0,0.0113306]
[1766271114070,0.02848983,88309.0,88296.0,0.0113306]
[1766271114258,0.02424026,88308.0,88296.0,0.0113306]
[1766271114454,0.02424026,88307.0,88296.0,0.0113306]
[1766271114646,0.02848983,88309.0,88296.0,0.0113306]
[1766271114847,0.02424193,88308.0,88296.0,0.0113306]
[1766271115048,0.02424193,88307.0,88296.0,0.0113306]
[1766271115256,0.02848983,88309.0,88296.0,0.0113306]
[1766271115462,0.02424278,88308.0,88296.0,0.0113306]
[1766271115756,0.02424278,88307.0,88296.0,0.0113306]
[1766271115952,0.02848983,88309.0,88296.0,0.0113306]
[1766271116150,0.02424277,88308.0,88296.0,0.0113306]
[1766271116352,0.02424277,88307.0,88296.0,0.0113306]
[1766271116648,0.00012983,88309.0,88296.0,0.0113306]
[1766271116853,0.02836,88306.0,88296.0,0.0113306]
[1766271120259,0.02836,88306.0,88297.0,0.0113305]
[1766271120460,0.02836,88306.0,88295.0,4e-05]
[1766271121260,0.02836,88306.0,88299.0,0.0113301]
[1766271130057,0.00012983,88309.0,88299.0,0.0113301]
[1766271130257,0.02421682,88308.0,88299.0,0.0113301]
[1766271130462,0.02836,88307.0,88299.0,0.0113301]
[1766271131165,0.00012983,88309.0,88295.0,4e-05]
[1766271131466,3e-08,88309.0,88303.0,0.0113297]
[1766271132262,3e-08,88309.0,88295.0,0.0284]
[1766271132464,3e-08,88309.0,88303.0,0.0113296]
[1766271133668,3e-08,88309.0,88306.0,0.0113293]
[1766271135871,3e-08,88314.0,88306.0,0.0113293]
[1766271137970,3e-08,88314.0,88309.0,0.0113289]
[1766271138366,0.00032,88337.0,88305.0,0.02836]
[1766271138666,0.02418489,88336.0,88315.0,0.0113281]
[1766271138870,0.02418489,88335.0,88315.0,0.0113281]
[1766271139071,0.02418489,88334.0,88315.0,0.0113281]
[1766271139273,0.02435472,88333.0,88317.0,0.0113278]
[1766271139568,0.00016983,88333.0,88317.0,0.0113278]
[1766271139768,0.00016983,88333.0,88316.0,0.00016983]
[1766271139769,0.00016983,88333.0,88321.0,0.0113273]
[1766271140370,0.00016983,88333.0,88316.0,0.00016983]
[1766271141270,0.00032,88337.0,88316.0,0.00016983]
[1766271141271,0.00032,88337.0,88325.0,0.0113268]
[1766271141473,0.19968139,88340.0,88325.0,0.0113268]
[1766271141666,0.00156,88343.0,88320.0,0.19968139]
[1766271142068,0.01136,88345.0,88320.0,0.19968139]
[1766271142268,0.00016983,88341.0,88328.0,0.0113264]
[1766271142968,0.01136,88345.0,88324.0,0.02832]
[1766271143170,0.01136,88345.0,88329.0,0.0113263]
[1766271146480,1.4448,88359.0,88324.0,0.02832]
[1766271146481,0.0113228,88357.0,88336.0,0.0113255]
[1766271146674,0.02832,88356.0,88340.0,0.19968139]
[1766271146873,0.02832,88356.0,88336.0,0.0113255]
[1766271147082,0.02832,88356.0,88340.0,0.19968139]
[1766271147597,0.02832,88356.0,88340.0,0.19946048]
[1766271147970,0.00016983,88357.0,88340.0,0.19946048]
[1766271148679,0.0113217,88366.0,88347.0,0.19946048]
[1766271148877,1.44464,88373.0,88341.0,0.02832]
[1766271148878,0.19946048,88370.0,88341.0,0.02832]
[1766271149082,0.0113213,88369.0,88343.0,0.0113244]
[1766271149272,0.19946048,88360.0,88343.0,0.0113244]
[1766271149776,0.1995737,88360.0,88343.0,0.0113244]
[1766271150481,0.00011322,88360.0,88343.0,0.0113244]
[1766271150682,0.00011322,88360.0,88341.0,0.02832]
[1766271150992,0.00011322,88360.0,88342.0,0.0113246]
[1766271151682,0.00011322,88360.0,88339.0,0.00016983]
[1766271151683,0.1995737,88360.0,88339.0,0.00016983]
[1766271151984,0.0113225,88359.0,88343.0,0.02832]
[1766271152185,0.0113225,88359.0,88333.0,0.0113257]
[1766271152186,0.19946048,88353.0,88336.0,0.015]
[1766271152380,0.19946048,88350.0,88336.0,0.015]
[1766271157884,0.0113238,88349.0,88336.0,0.015]
[1766271158486,0.19946048,88350.0,88336.0,0.015]
[1766271163195,0.19946048,88350.0,88334.0,0.00016983]
[1766271163596,0.22778048,88350.0,88334.0,0.00016983]
[1766271166495,0.02832,88350.0,88334.0,0.00016983]
[1766271166793,0.1995737,88360.0,88345.0,0.0113242]
[1766271166990,0.01544,88359.0,88345.0,0.0113242]
[1766271168504,0.01544,88359.0,88340.0,0.19946048]
[1766271168703,0.01544,88359.0,88345.0,0.0113242]
[1766271169114,0.01544,88359.0,88341.0,0.0113248]
[1766271170111,8e-08,88340.0,88323.0,0.00852]
[1766271170907,0.00016991,88340.0,88323.0,0.00868983]
[1766271171627,0.00016991,88340.0,88329.0,0.0113263]
[1766271172117,0.00016983,88340.0,88329.0,0.0113263]
[1766271173411,0.19963031,88340.0,88329.0,0.0113263]
[1766271173809,0.00016983,88340.0,88323.0,0.01149683]
[1766271174007,0.19963031,88340.0,88323.0,0.01149683]
[1766271174614,0.00016983,88340.0,88323.0,0.01149683]
[1766271175417,0.19963031,88340.0,88323.0,0.01149683]
[1766271178115,0.19963031,88340.0,88323.0,0.00016983]
[1766271178421,0.19963031,88340.0,88323.0,0.02848983]
[1766271179423,0.00016983,88340.0,88323.0,0.02848983]
[1766271180125,0.00016983,88340.0,88324.0,0.06103344]
[1766271181317,0.00016983,88340.0,88325.0,0.06103344]
[1766271182226,0.00016983,88340.0,88324.0,0.06103344]
[1766271182424,0.00016983,88340.0,88325.0,0.06103344]
[1766271183119,0.00016983,88340.0,88329.0,0.0113262]
[1766271189033,0.02832,88346.0,88333.0,0.0113258]
[1766271189226,0.02832,88346.0,88336.0,0.0113254]
[1766271190030,0.00016983,88350.0,88332.0,0.01568]
[1766271190232,0.01416983,88350.0,88340.0,0.0113249]
[1766271190621,0.00016983,88350.0,88332.0,0.01568]
[1766271190822,3e-08,88350.0,88343.0,0.0113245]
[1766271199430,0.02832,88361.0,88349.0,0.0113238]
[1766271199630,0.1995345,88370.0,88352.0,0.0113234]
[1766271199631,5e-08,88360.0,88352.0,0.0113234]
[1766271199831,0.02832,88362.0,88352.0,0.0113234]
[1766271202729,0.00011322,88366.0,88348.0,0.00016983]
[1766271202934,2e-08,88367.0,88361.0,0.0113222]
[1766271203132,0.02832,88374.0,88364.0,0.0113218]
[1766271203531,1.44424,88387.0,88360.0,0.1995345]
[1766271203733,0.02836,88386.0,88360.0,0.1995345]
[1766271204035,0.1995345,88390.0,88365.0,0.00016973]
[1766271204232,0.02836,88385.0,88365.0,0.00016973]
[1766271205237,0.1995345,88390.0,88365.0,0.00016973]
[1766271205238,0.0113177,88397.0,88372.0,0.0113208]
[1766271205539,0.0113182,88393.0,88370.0,0.011321]
[1766271205737,0.02836,88396.0,88370.0,0.011321]
[1766271205940,0.02836,88396.0,88365.0,0.00016973]
[1766271206138,0.0088,88395.0,88383.0,0.0113193]
[1766271206343,0.0113162,88409.0,88383.0,0.0113194]
[1766271206538,0.1995345,88400.0,88383.0,0.0113194]
[1766271206744,0.02836,88399.0,88383.0,0.0113194]
[1766271206943,0.02836,88399.0,88380.0,0.00016973]
[1766271208241,0.02836,88399.0,88381.0,0.0113196]
[1766271208639,0.02836,88399.0,88380.0,0.00016973]
[1766271215747,0.0113175,88398.0,88380.0,0.00016973]
[1766271223750,0.0113175,88398.0,88375.0,0.0113203]
[1766271224752,0.0001694,88395.0,88378.0,0.00016973]
[1766271225452,0.0001694,88395.0,88379.0,0.0113199]
[1766271225753,0.0001694,88395.0,88378.0,0.00016973]
[1766271226146,0.0001694,88395.0,88379.0,0.0113199]
[1766271226753,0.0001694,88395.0,88378.0,0.00016973]
[1766271227139,0.0001694,88395.0,88378.0,0.01148973]
[1766271229840,0.0001694,88395.0,88381.0,0.0113197]
[1766271231253,0.0001694,88395.0,88378.0,0.00016973]
[1766271232258,0.0001694,88395.0,88381.0,0.0113197]
[1766271234951,0.0001694,88395.0,88378.0,0.00016973]
[1766271235551,0.0001694,88395.0,88379.0,0.0113199]
[1766271241157,0.0001694,88395.0,88378.0,0.00016973]
[1766271243364,0.0001694,88395.0,88378.0,0.01148973]
[1766271254974,0.0001694,88395.0,88378.0,0.00016973]
[1766271255782,0.0114874,88395.0,88378.0,0.00016973]
[1766271256678,0.19931467,88390.0,88378.0,0.00016973]
[1766271256885,0.0114874,88395.0,88378.0,0.00016973]
[1766271259085,0.19932186,88390.0,88378.0,0.00016973]
[1766271260980,0.0114874,88395.0,88378.0,0.00016973]
[1766271263392,0.19932186,88390.0,88378.0,0.00016973]
[1766271272389,0.19932186,88390.0,88375.0,0.04067762]
[1766271272598,0.19932186,88390.0,88375.0,0.05199792]
[1766271277603,0.02832,88389.0,88375.0,0.04067762]
[1766271279296,0.0113192,88385.0,88375.0,0.03067762]
[1766271279496,0.02832,88385.0,88374.0,0.00016973]
[1766271281805,0.02832,88385.0,88372.0,0.00264]
[1766271283209,0.19932186,88382.0,88360.0,0.08168708]
[1766271283392,0.19932186,88382.0,88348.0,1.4436]
[1766271283393,0.19932186,88371.0,88354.0,0.02832]
[1766271283598,0.02832,88370.0,88354.0,0.02832]
[1766271283901,0.02832,88370.0,88342.0,0.0113246]
[1766271284109,0.02832,88370.0,88343.0,0.02832]
[1766271284410,0.011322,88364.0,88348.0,0.00016973]
[1766271286893,0.00016973,88365.0,88348.0,0.00016973]
[1766271287099,0.01149153,88365.0,88348.0,0.00016973]
[1766271288203,0.19932186,88360.0,88348.0,0.00016973]
[1766271292503,0.19932186,88360.0,88349.0,0.0113238]
[1766271292711,0.19932186,88360.0,88348.0,0.00016973]
[1766271293010,0.02832,88364.0,88348.0,0.00016973]
[1766271294408,0.02832,88364.0,88349.0,0.0113238]
[1766271294603,0.19932186,88360.0,88340.0,0.19932186]
[1766271294804,0.1994528,88360.0,88345.0,0.0113242]
[1766271295003,0.1994528,88360.0,88342.0,0.02832]
[1766271295608,0.1994528,88360.0,88342.0,0.02848973]
[1766271296204,0.1994528,88360.0,88337.0,0.0113253]
[1766271296205,0.1994528,88352.0,88337.0,0.0113253]
[1766271296514,0.1994528,88352.0,88309.0,0.0113289]
[1766271296515,0.2277728,88352.0,88340.0,0.0113249]
[1766271296704,0.02832,88352.0,88336.0,0.0113254]
[1766271297804,0.1994528,88350.0,88335.0,0.02843349]
[1766271298111,0.1994528,88350.0,88328.0,0.02832]
[1766271299209,0.1994528,88350.0,88328.0,0.0396464]
[1766271299410,0.02832,88349.0,88335.0,0.0113255]
[1766271300312,0.02832,88349.0,88340.0,0.0113249]
[1766271300610,0.02832,88348.0,88341.0,0.0113248]
[1766271300913,0.02832,88348.0,88344.0,0.0113243]
[1766271301112,3e-08,88353.0,88349.0,0.0113237]
[1766271301313,0.1994528,88380.0,88347.0,0.039644]
[1766271301514,0.0531124,88379.0,88350.0,0.19938853]
[1766271301729,0.02832,88379.0,88350.0,0.19938853]
[1766271301915,0.19938853,88380.0,88368.0,0.0113213]
[1766271302114,1.64338853,88390.0,88355.0,0.02836]
[1766271302316,0.00016973,88381.0,88364.0,0.00016973]
[1766271302506,0.02836,88380.0,88364.0,0.00016973]
[1766271302907,0.02836,88380.0,88371.0,0.0113209]
[1766271305317,0.00016973,88381.0,88371.0,0.0113209]
[1766271311619,0.00016973,88381.0,88364.0,0.00388973]
[1766271311814,0.00016973,88381.0,88365.0,0.0113217]
[1766271312206,0.00016973,88381.0,88364.0,0.00388973]
[1766271317016,0.0113199,88380.0,88364.0,0.00388973]
[1766271321511,0.00016973,88381.0,88364.0,0.00388973]
[1766271327224,0.02541976,88380.0,88365.0,0.0113217]
[1766271327425,0.00016973,88381.0,88365.0,0.0113217]
[1766271327723,0.0254208,88380.0,88364.0,0.00388973]
[1766271327915,0.02848973,88381.0,88364.0,0.00388973]
[1766271328116,0.02542082,88380.0,88364.0,0.00388973]
[1766271328418,0.02543263,88379.0,88364.0,0.00388973]
[1766271328625,0.02848973,88381.0,88364.0,0.00388973]
[1766271328815,0.02543349,88380.0,88364.0,0.00388973]
[1766271329015,0.02543349,88379.0,88364.0,0.01521153]
[1766271329221,0.02545699,88378.0,88364.0,0.01521153]
[1766271329415,0.02545699,88377.0,88364.0,0.01521153]
[1766271329610,0.02848973,88381.0,88364.0,0.01521153]
[1766271329818,0.02545741,88380.0,88364.0,0.01521153]
[1766271330023,0.02545741,88379.0,88364.0,0.01521153]
[1766271330219,0.02545741,88378.0,88364.0,0.01521153]
[1766271330427,0.02545741,88377.0,88367.0,0.0113215]
[1766271330625,0.02848973,88381.0,88367.0,0.0113215]
[1766271330925,0.02545781,88380.0,88367.0,0.0113215]
[1766271331225,0.02545781,88379.0,88367.0,0.0113215]
[1766271331519,0.02545781,88378.0,88367.0,0.0113215]
[1766271331720,0.02545781,88377.0,88367.0,0.0113215]
[1766271331920,0.02545781,88376.0,88367.0,0.0113215]
[1766271332126,0.02848973,88381.0,88367.0,0.0113215]
[1766271332323,0.02547333,88380.0,88367.0,0.0113215]
[1766271332524,0.02547333,88379.0,88367.0,0.0113215]
[1766271332724,0.02547333,88378.0,88367.0,0.0113215]
[1766271332918,0.02547333,88377.0,88367.0,0.0113215]
[1766271333124,0.02547333,88376.0,88367.0,0.0113215]
[1766271333323,0.02848973,88381.0,88367.0,0.0113215]
[1766271333520,0.02545948,88380.0,88367.0,0.0113215]
[1766271333724,0.02545948,88379.0,88367.0,0.0113215]
[1766271334023,0.02545948,88378.0,88350.0,0.19935535]
[1766271334227,0.02545948,88377.0,88362.0,0.0113221]
[1766271334526,0.02545948,88376.0,88362.0,0.0113221]
[1766271334830,0.19935535,88380.0,88362.0,0.0113221]
[1766271335027,0.02545935,88379.0,88362.0,0.0113221]
[1766271335235,0.02545935,88378.0,88362.0,0.0113221]
[1766271335431,0.02545935,88377.0,88362.0,0.0113221]
[1766271335634,0.02545935,88376.0,88362.0,0.0113221]
[1766271335835,0.02848973,88381.0,88362.0,0.0113221]
[1766271336034,0.02545908,88380.0,88363.0,0.0113219]
[1766271336234,0.02545908,88379.0,88363.0,0.0113219]
[1766271336429,0.02545908,88378.0,88363.0,0.0113219]
[1766271336628,0.02545908,88377.0,88363.0,0.0113219]
[1766271336830,0.02545908,88376.0,88363.0,0.0113219]
[1766271337028,0.02848973,88381.0,88363.0,0.0113219]
[1766271337232,0.02545877,88380.0,88363.0,0.0113219]
[1766271337436,0.02545877,88379.0,88363.0,0.0113219]
[1766271337636,0.02545877,88378.0,88363.0,0.0113219]
[1766271337836,0.02545877,88377.0,88363.0,0.0113219]
[1766271338036,0.02545877,88376.0,88363.0,0.0113219]
[1766271338228,0.02848973,88381.0,88363.0,0.0113219]
[1766271338429,0.22481391,88380.0,88363.0,0.0113219]
[1766271338633,0.02545856,88379.0,88363.0,0.0113219]
[1766271338827,0.02545856,88378.0,88359.0,0.0113224]
[1766271339028,0.02545856,88377.0,88359.0,0.0113224]
[1766271339228,0.02545856,88376.0,88362.0,0.0113221]
[1766271339536,0.19935535,88380.0,88362.0,0.0113221]
[1766271339739,0.02545835,88379.0,88362.0,0.0113221]
[1766271339935,0.02545835,88378.0,88362.0,0.0113221]
[1766271340136,0.02545835,88377.0,88362.0,0.0113221]
[1766271340448,0.02545835,88376.0,88362.0,0.0113221]
[1766271340633,0.19935535,88380.0,88362.0,0.0113221]
[1766271340838,0.02545825,88379.0,88362.0,0.0113221]
[1766271341030,0.02545825,88378.0,88362.0,0.0113221]
[1766271341236,0.02545825,88377.0,88362.0,0.0113221]
[1766271341431,0.02545825,88376.0,88362.0,0.0113221]
[1766271341634,0.19935535,88380.0,88362.0,0.0113221]
[1766271341939,0.02545882,88379.0,88361.0,0.0113222]
[1766271342138,0.02545882,88378.0,88361.0,0.0113222]
[1766271342340,0.02545882,88377.0,88361.0,0.0113222]
[1766271342640,0.02545882,88376.0,88361.0,0.0113222]
[1766271342831,0.02545882,88375.0,88351.0,0.02832]
[1766271343031,0.19935535,88380.0,88351.0,0.02832]
[1766271343337,0.02545918,88379.0,88351.0,0.02832]
[1766271343539,0.02545918,88378.0,88351.0,0.02832]
[1766271343734,0.02545918,88377.0,88351.0,0.02832]
[1766271343934,0.02545918,88376.0,88351.0,0.02832]
[1766271344135,0.02545918,88375.0,88359.0,0.0113225]
[1766271344337,0.02545918,88374.0,88359.0,0.0113225]
[1766271344537,0.02832,88373.0,88359.0,0.0113225]
[1766271346739,0.02832,88373.0,88351.0,0.02832]
[1766271350242,0.02832,88373.0,88360.0,0.0113223]
[1766271357238,0.02832,88373.0,88356.0,0.0113228]
[1766271357546,0.02832,88373.0,88351.0,0.02832]
[1766271357845,0.02832,88373.0,88359.0,0.0113224]
[1766271361541,0.02832,88373.0,88355.0,0.0113229]
[1766271363350,0.02832,88373.0,88351.0,0.02832]
[1766271363548,0.02832,88373.0,88356.0,0.0113229]
[1766271364450,0.02832,88373.0,88359.0,0.0113224]
[1766271365053,0.19940935,88380.0,88359.0,0.0113224]
[1766271365243,0.01548,88376.0,88359.0,0.0113224]
[1766271365440,0.02545644,88375.0,88359.0,0.0113224]
[1766271372168,0.02545644,88374.0,88359.0,0.0113224]
[1766271372871,0.02832,88376.0,88359.0,0.0113224]
[1766271373172,0.02545754,88375.0,88359.0,0.0113224]
[1766271373374,0.02545754,88374.0,88359.0,0.0113224]
[1766271373577,0.19939084,88380.0,88359.0,0.0113224]
[1766271373763,0.05377748,88379.0,88359.0,0.0113224]
[1766271374073,0.02545748,88378.0,88359.0,0.0113224]
[1766271374283,0.02545748,88377.0,88359.0,0.0113224]
[1766271374468,0.02545748,88376.0,88359.0,0.0113224]
[1766271374772,0.02545748,88375.0,88359.0,0.0113224]
[1766271374974,0.02545748,88374.0,88359.0,0.0113224]
[1766271375157,0.02832,88376.0,88359.0,0.0113224]
[1766271375358,0.02545737,88375.0,88359.0,0.0113224]
[1766271375579,0.02545737,88374.0,88359.0,0.0113224]
[1766271375871,0.02832,88376.0,88359.0,0.0113224]
[1766271376061,0.02545713,88375.0,88359.0,0.0113224]
[1766271376261,0.02545713,88374.0,88362.0,0.011322]
[1766271376471,0.02832,88376.0,88362.0,0.011322]
[1766271376661,0.02545637,88375.0,88362.0,0.011322]
[1766271376858,0.19939084,88380.0,88365.0,0.0113217]
[1766271377172,0.02832,88379.0,88369.0,0.0113212]
[1766271378377,0.00016973,88381.0,88369.0,0.0113212]
[1766271378573,0.02684,88380.0,88369.0,0.0113212]
[1766271379063,0.00016973,88381.0,88369.0,0.0113212]
[1766271379265,0.02832,88379.0,88369.0,0.0113212]
[1766271379976,0.00016973,88381.0,88369.0,0.0113212]
[1766271380281,0.02832,88380.0,88369.0,0.0113212]
[1766271381473,0.00016973,88381.0,88369.0,0.0113212]
[1766271387177,0.02544366,88380.0,88369.0,0.0113212]
[1766271387379,0.02544366,88379.0,88369.0,0.0113212]
[1766271387682,0.00016973,88381.0,88369.0,0.0113212]
[1766271387866,0.02544335,88380.0,88369.0,0.0113212]
[1766271388068,0.02544335,88379.0,88369.0,0.0113212]
[1766271388270,0.00016973,88381.0,88369.0,0.0113212]
[1766271388478,0.02544318,88380.0,88369.0,0.0113212]
[1766271388683,0.02544318,88379.0,88369.0,0.0113212]